bitfinex/quotes_BTCUSD_20251201
["timestamp","ask_amount","ask_price","bid_price","bid_amount"]
[1764574728673,0.23096038,86595.0,86590.0,0.2425208]
[1764574728917,0.01154801,86595.0,86588.0,0.24252589]
[1764574729095,0.2425033,86597.0,86592.0,0.23096692]
[1764574729294,0.24250687,86596.0,86588.0,0.01154894]
[1764574729493,0.01154787,86596.0,86591.0,0.01154854]
[1764574729700,0.01154761,86598.0,86592.0,0.01154841]
[1764574729895,0.00118,86600.0,86592.0,0.01154841]
[1764574730113,0.24249998,86598.0,86593.0,0.01154827]
[1764574730322,0.24249998,86598.0,86594.0,0.01154814]
[1764574730621,0.24249998,86598.0,86590.0,0.01154867]
[1764574730622,0.01272814,86594.0,86583.0,0.23099087]
[1764574730804,0.01272814,86594.0,86580.0,0.01155001]
[1764574730805,0.24369597,86593.0,86589.0,0.01154881]
[1764574731493,0.01154841,86592.0,86587.0,0.24253041]
[1764574731701,0.00118,86593.0,86590.0,0.24252045]
[1764574731909,0.27840786,86597.0,86590.0,0.24252045]
[1764574731910,0.03472505,86597.0,86592.0,0.01154841]
[1764574732103,0.03472505,86597.0,86594.0,0.01154814]
[1764574732307,0.03472505,86597.0,86592.0,0.24251525]
[1764574732308,0.03472505,86597.0,86593.0,0.24251375]
[1764574732469,0.03472505,86597.0,86594.0,0.23096287]
[1764574732681,0.03472505,86597.0,86593.0,0.24251382]
[1764574732887,0.03472505,86597.0,86488.0,0.20656186]
[1764574732888,0.23214517,86594.0,86587.0,0.01154907]
[1764574733167,0.24250717,86596.0,86587.0,0.01154907]
[1764574733168,0.00118,86593.0,86591.0,0.24251855]
[1764574733360,0.00118,86593.0,86591.0,0.01154854]
[1764574733569,0.00118,86593.0,86592.0,0.23096821]
[1764574733949,0.00159259,86593.0,86590.0,0.24252072]
[1764574734144,0.0347232,86593.0,86592.0,0.23096821]
[1764574734506,0.01154841,86592.0,86587.0,0.01154907]
[1764574734763,0.00118,86588.0,86587.0,0.01154907]
[1764574734959,0.00118,86588.0,86587.0,0.24253062]
[1764574735313,0.27723765,86593.0,86589.0,0.01154881]
[1764574735514,0.01154841,86592.0,86586.0,0.24253088]
[1764574735711,0.0347232,86592.0,86591.0,0.23097088]
[1764574736226,0.0347232,86592.0,86589.0,0.24252243]
[1764574736227,0.0347232,86592.0,86590.0,0.23097337]
[1764574736419,0.0347232,86592.0,86589.0,0.24252243]
[1764574736634,0.0347232,86592.0,86590.0,0.23097261]
[1764574736834,0.0347232,86592.0,86589.0,0.24252464]
[1764574737236,0.0347232,86592.0,86590.0,0.2309734]
[1764574737821,0.01154921,86586.0,86577.0,0.01155041]
[1764574738155,0.23215892,86588.0,86584.0,0.23098862]
[1764574738267,0.00361525,86587.0,86583.0,0.01154961]
[1764574738466,0.00361525,86587.0,86584.0,0.23098948]
[1764574738703,0.00361525,86587.0,86585.0,0.23098683]
[1764574738902,0.0347232,86592.0,86588.0,0.01154894]
[1764574739085,0.24613595,86591.0,86587.0,0.01154907]
[1764574739299,0.00361518,86590.0,86587.0,0.24253046]
[1764574739501,0.04627161,86592.0,86587.0,0.24253046]
[1764574739502,0.00361518,86589.0,86588.0,0.23097731]
[1764574739706,0.0347232,86592.0,86590.0,0.23097355]
[1764574740117,0.00514408,86591.0,86588.0,0.24252775]
[1764574740317,0.00118,86589.0,86586.0,0.01154921]
[1764574740519,0.0347232,86592.0,86587.0,0.2425284]
[1764574740520,0.00361497,86588.0,86587.0,0.2425284]
[1764574740724,0.00361497,86591.0,86588.0,0.24252779]
[1764574741066,0.00361497,86590.0,86589.0,0.01154881]
[1764574741374,0.00361497,86590.0,86589.0,0.2425227]
[1764574741545,0.00361497,86590.0,86585.0,0.23098457]
[1764574741546,0.01154894,86588.0,86579.0,0.01155014]
[1764574741844,0.24614773,86587.0,86583.0,0.01154961]
[1764574742049,0.00361497,86586.0,86583.0,0.24254157]
[1764574742192,0.00361497,86585.0,86583.0,0.24254157]
[1764574742395,0.00361497,86584.0,86583.0,0.24254157]
[1764574742598,0.01634444,86584.0,86581.0,0.24254647]
[1764574742795,0.01634444,86584.0,86573.0,0.23101674]
[1764574742796,0.24257287,86572.0,86565.0,0.01155201]
[1764574742998,0.00361497,86571.0,86570.0,0.23102691]
[1764574743406,0.03834521,86571.0,86570.0,0.23102691]
[1764574743646,0.03951521,86571.0,86569.0,0.23102882]
[1764574743854,0.03473024,86571.0,86570.0,0.23102691]
[1764574744076,0.03834586,86571.0,86568.0,0.01155161]
[1764574744219,0.00361562,86570.0,86568.0,0.01155161]
[1764574744431,0.00361562,86569.0,86568.0,0.24258386]
[1764574745022,0.00361562,86569.0,86566.0,0.23835545]
[1764574745023,0.00361562,86569.0,86566.0,0.00732]
[1764574745294,0.00361562,86568.0,86567.0,0.23103492]
[1764574746180,0.00478562,86568.0,86562.0,0.01155241]
[1764574746379,0.00117,86563.0,86554.0,0.01155348]
[1764574746525,0.00117,86568.0,86561.0,0.01155254]
[1764574746526,0.00361562,86562.0,86561.0,0.01155254]
[1764574746733,0.00361562,86562.0,86561.0,0.24260347]
[1764574748322,0.00361562,86562.0,86555.0,0.01155334]
[1764574748323,0.01155268,86560.0,86555.0,0.01155334]
[1764574748560,0.00117,86556.0,86552.0,0.01155374]
[1764574748757,0.00117,86553.0,86551.0,0.23107659]
[1764574748906,0.00478562,86552.0,86551.0,0.23107763]
[1764574749107,0.00361562,86552.0,86551.0,0.23107763]
[1764574749947,0.00361562,86552.0,86551.0,0.23207763]
[1764574750930,0.00361562,86552.0,86551.0,0.24991763]
[1764574751357,0.01155201,86565.0,86559.0,0.24260821]
[1764574751568,0.01155201,86565.0,86559.0,0.24260844]
[1764574751569,0.24621217,86564.0,86559.0,0.24260844]
[1764574751767,0.00361625,86563.0,86562.0,0.23104771]
[1764574752107,0.00361625,86563.0,86562.0,0.23104826]
[1764574752346,0.00361625,86563.0,86562.0,0.27268826]
[1764574752577,0.01155134,86570.0,86566.0,0.01155187]
[1764574752780,0.00361601,86569.0,86567.0,0.24258414]
[1764574753047,0.00361601,86568.0,86567.0,0.24258414]
[1764574753727,0.24257132,86573.0,86568.0,0.23103225]
[1764574753953,0.01155121,86571.0,86564.0,0.01155214]
[1764574754212,0.01155121,86571.0,86564.0,0.24259268]
[1764574754213,0.24258394,86568.0,86564.0,0.24259268]
[1764574754413,0.24258221,86569.0,86566.0,0.23103518]
[1764574754547,0.00361594,86568.0,86567.0,0.23103492]
[1764574754943,0.2461998,86568.0,86564.0,0.23104231]
[1764574755170,0.24260053,86563.0,86552.0,0.24262675]
[1764574755367,0.24260583,86561.0,86555.0,0.01155334]
[1764574755570,0.68844138,86562.0,86558.0,0.24261132]
[1764574755888,0.68844138,86562.0,86555.0,0.24261901]
[1764574755889,0.01155201,86565.0,86560.0,0.23105118]
[1764574756052,0.24259417,86565.0,86560.0,0.23105118]
[1764574756640,0.24259417,86565.0,86561.0,0.24260195]
[1764574756879,0.01155254,86561.0,86556.0,0.01155321]
[1764574757082,0.23105426,86560.0,86556.0,0.01155321]
[1764574757288,0.24260432,86561.0,86557.0,0.24261409]
[1764574757486,0.23104927,86562.0,86558.0,0.24261126]
[1764574757802,0.23104927,86562.0,86559.0,0.23105534]
[1764574758065,0.01155308,86557.0,86549.0,0.01155414]
[1764574758248,0.01155308,86557.0,86553.0,0.24262363]
[1764574758533,0.24261243,86558.0,86554.0,0.01155348]
[1764574758734,0.01155294,86558.0,86555.0,0.24261874]
[1764574759169,0.24261972,86556.0,86552.0,0.01155374]
[1764574759367,0.24261972,86556.0,86545.0,0.23109105]
[1764574759368,0.01155374,86552.0,86546.0,0.01155454]
[1764574759569,0.01155388,86551.0,86546.0,0.24264337]
[1764574759698,0.24262896,86552.0,86547.0,0.24264227]
[1764574759900,0.24262896,86552.0,86547.0,0.01155441]
[1764574760310,0.23108404,86549.0,86545.0,0.01155468]
[1764574760542,0.01155388,86551.0,86547.0,0.24264272]
[1764574760746,0.24263462,86550.0,86547.0,0.24264272]
[1764574760944,0.23108385,86549.0,86547.0,0.01155441]
[1764574761306,0.24262946,86552.0,86549.0,0.24263471]
[1764574761661,0.24262946,86552.0,86549.0,0.24263631]
[1764574762270,0.01155321,86556.0,86550.0,0.01155401]
[1764574762441,0.01155374,86552.0,86548.0,0.01155428]
[1764574762817,0.01155348,86554.0,86550.0,0.23107933]
[1764574762966,0.01155334,86555.0,86552.0,0.24262629]
[1764574763154,0.01155348,86554.0,86549.0,0.01155414]
[1764574763523,0.24262612,86553.0,86550.0,0.24263224]
[1764574763709,0.01155348,86554.0,86551.0,0.23107645]
[1764574763895,0.01155348,86554.0,86552.0,0.23107403]
[1764574764266,0.24262276,86555.0,86552.0,0.23107403]
[1764574764605,0.33455281,86559.0,86552.0,0.23107496]
[1764574764777,0.2310719,86554.0,86551.0,0.24263101]
[1764574764979,0.01155428,86548.0,86542.0,0.01155508]
[1764574765161,0.24264675,86546.0,86541.0,0.01155521]
[1764574765358,0.24264675,86546.0,86541.0,0.24265945]
[1764574765591,0.24264675,86546.0,86540.0,0.2311046]
[1764574765592,0.24265336,86544.0,86540.0,0.01155535]
[1764574765902,0.24265333,86544.0,86539.0,0.24266464]
[1764574766119,0.01155481,86544.0,86540.0,0.24266177]
[1764574766320,0.01155481,86544.0,86541.0,0.2426572]
[1764574766800,0.24265037,86546.0,86541.0,0.2426572]
[1764574767006,0.23109468,86545.0,86542.0,0.01155508]
[1764574767346,0.01155441,86547.0,86539.0,0.00011794]
[1764574767552,0.231107,86540.0,86539.0,0.00011794]
[1764574768018,0.554107,86540.0,86539.0,0.00011794]
[1764574771031,0.26048552,86546.0,86539.0,0.00011794]
[1764574771032,0.01155388,86551.0,86543.0,0.23109658]
[1764574771247,0.00732,86555.0,86552.0,0.01155374]
[1764574771424,0.23105675,86559.0,86552.0,0.01155374]
[1764574771560,0.323,86558.0,86553.0,0.23106987]
[1764574771758,0.24261291,86558.0,86554.0,0.01155348]
[1764574771986,0.01155334,86555.0,86549.0,0.01155414]
[1764574772186,0.01155428,86548.0,86545.0,0.01155468]
[1764574772587,0.24263711,86549.0,86546.0,0.23108871]
[1764574773208,0.24263477,86550.0,86544.0,0.01155481]
[1764574773410,0.01155414,86549.0,86545.0,0.24264833]
[1764574773617,0.24263183,86551.0,86548.0,0.2310835]
[1764574774931,1.11742936,86560.0,86552.0,0.01155374]
[1764574775148,0.323,86558.0,86555.0,0.24261794]
[1764574775306,0.323,86558.0,86556.0,0.23106311]
[1764574775546,0.323,86558.0,86553.0,0.23107213]
[1764574775547,0.55406131,86558.0,86553.0,0.23107213]
[1764574775742,0.323,86558.0,86555.0,0.24261792]
[1764574775944,0.323,86558.0,86556.0,0.2310633]
[1764574776144,0.24260846,86560.0,86556.0,0.2310633]
[1764574776460,0.24260846,86560.0,86556.0,0.24261651]
[1764574777339,0.24360846,86560.0,86556.0,0.24261651]
[1764574777635,0.24360846,86560.0,86557.0,0.24261226]
[1764574777837,0.24360846,86560.0,86556.0,0.24261651]
[1764574777838,0.323,86558.0,86556.0,0.24261651]
[1764574777974,0.323,86558.0,86557.0,0.23106161]
[1764574779031,0.323,86560.0,86558.0,0.23105736]
[1764574779316,0.001,86560.0,86559.0,0.23105627]
[1764574779662,0.57291937,86563.0,86559.0,0.23105627]
[1764574780097,0.001,86560.0,86559.0,0.23105627]
[1764574780494,0.24260218,86562.0,86559.0,0.23105627]
[1764574780698,0.01155241,86562.0,86560.0,0.23105234]
[1764574780901,0.2509181,86563.0,86560.0,0.24260502]
[1764574782061,0.2499181,86563.0,86560.0,0.24260502]
[1764574782215,0.00732,86563.0,86560.0,0.01155268]
[1764574782417,0.23204853,86562.0,86560.0,0.2426061]
[1764574782775,0.001,86562.0,86560.0,0.2426061]
[1764574782977,0.23104838,86562.0,86560.0,0.2426061]
[1764574783400,0.00832,86563.0,86560.0,0.2426061]
[1764574783610,0.25091912,86563.0,86560.0,0.2310531]
[1764574783821,0.24260293,86562.0,86559.0,0.01155281]
[1764574783981,0.24360293,86562.0,86559.0,0.24260713]
[1764574784516,0.24360293,86562.0,86560.0,0.23105276]
[1764574785088,0.24260293,86562.0,86560.0,0.23105276]
[1764574785289,0.01155241,86562.0,86560.0,0.23105276]
[1764574785490,0.01155241,86562.0,86559.0,0.24260713]
[1764574785491,0.24260109,86562.0,86559.0,0.24260713]
[1764574785697,0.23105115,86561.0,86559.0,0.24260713]
[1764574785943,0.24260109,86562.0,86560.0,0.2310536]
[1764574786259,0.24260109,86562.0,86559.0,0.24260713]
[1764574786657,0.24360109,86562.0,86559.0,0.24260713]
[1764574786861,0.01155308,86557.0,86546.0,0.01155454]
[1764574787067,0.01155361,86553.0,86549.0,0.24263711]
[1764574787286,0.24262685,86553.0,86549.0,0.01155414]
[1764574787574,0.23107517,86552.0,86549.0,0.01155414]
[1764574787777,0.23107517,86552.0,86549.0,0.24263689]
[1764574788783,0.01155401,86550.0,86544.0,0.01155481]
[1764574789009,0.24263742,86549.0,86545.0,0.23109352]
[1764574789217,0.24263742,86549.0,86545.0,0.2426482]
[1764574789843,0.23108602,86548.0,86545.0,0.2426482]
[1764574790041,0.24263742,86549.0,86546.0,0.23109067]
[1764574790366,0.01155428,86548.0,86542.0,0.24265456]
[1764574790561,0.01155508,86542.0,86539.0,0.00011794]
[1764574790718,0.554107,86540.0,86539.0,0.00011794]
[1764574791319,0.323,86540.0,86539.0,0.00011794]
[1764574791522,0.22463415,86541.0,86539.0,0.00011794]
[1764574791938,0.23110205,86542.0,86539.0,0.01167342]
[1764574792131,0.24265713,86542.0,86539.0,0.01167342]
[1764574792362,0.23110488,86541.0,86539.0,0.01167342]
[1764574793262,0.231107,86540.0,86539.0,0.00011794]
[1764574795185,0.28882243,86540.0,86539.0,0.00011794]
[1764574796195,0.231107,86540.0,86539.0,0.00011794]
[1764574800567,0.23110452,86541.0,86539.0,0.00011794]
[1764574800776,0.83502947,86549.0,86539.0,0.00011794]
[1764574800950,0.01155494,86543.0,86539.0,0.00011794]
[1764574801145,0.23110433,86541.0,86539.0,0.00011794]
[1764574801359,0.25768389,86540.0,86539.0,0.00011794]
[1764574801539,0.32752688,86540.0,86539.0,0.00011794]
[1764574801754,0.30094999,86540.0,86539.0,0.00011794]
[1764574801981,0.62394999,86540.0,86539.0,0.00011794]
[1764574803861,0.01156029,86503.0,86496.0,0.00315526]
[1764574804168,0.01156029,86503.0,86496.0,0.00354881]
[1764574804169,0.23122189,86497.0,86496.0,0.00354881]
[1764574804293,0.01156082,86499.0,86496.0,0.00354881]
[1764574804496,0.56577747,86499.0,86496.0,0.00354881]
[1764574804712,0.33456082,86499.0,86496.0,0.00354881]
[1764574804941,0.56577773,86499.0,86496.0,0.00354881]
[1764574805783,0.33456082,86499.0,86496.0,0.24633442]
[1764574805986,0.323,86505.0,86500.0,0.24277412]
[1764574806211,0.23121272,86501.0,86496.0,0.00354881]
[1764574806384,0.01156055,86501.0,86497.0,0.24278285]
[1764574806742,0.24277197,86501.0,86497.0,0.01156109]
[1764574806944,0.24277457,86500.0,86496.0,0.00354881]
[1764574807176,0.23121925,86498.0,86496.0,0.00354881]
[1764574807410,0.23121921,86498.0,86496.0,0.00354881]
[1764574807776,0.23122189,86497.0,86496.0,0.00354881]
[1764574807987,0.23121929,86498.0,86496.0,0.00354881]
[1764574808197,0.01156082,86499.0,86496.0,0.00354881]
[1764574808400,0.55422189,86497.0,86496.0,0.00354881]
[1764574811391,0.01156256,86486.0,86479.0,0.0115635]
[1764574811669,0.24281451,86486.0,86482.0,0.01156309]
[1764574811815,0.24281451,86486.0,86485.0,0.00034976]
[1764574812326,0.2428099,86488.0,86485.0,0.00034976]
[1764574812508,0.01156229,86488.0,86484.0,0.01156283]
[1764574812849,0.24281112,86487.0,86483.0,0.01156296]
[1764574813012,0.01156243,86487.0,86483.0,0.24282204]
[1764574813221,0.24281112,86487.0,86483.0,0.24282204]
[1764574813556,0.23125667,86484.0,86480.0,0.24282812]
[1764574813704,0.2428223,86483.0,86479.0,0.23166327]
[1764574813904,0.2428223,86483.0,86479.0,0.00039368]
[1764574813905,0.23126734,86480.0,86479.0,0.00039368]
[1764574814073,0.55426734,86480.0,86479.0,0.00039368]
[1764574816436,0.61679033,86480.0,86479.0,0.00039368]
[1764574817428,0.61779033,86480.0,86479.0,0.00039368]
[1764574820837,0.55526734,86480.0,86479.0,0.00039368]
[1764574821176,0.55526734,86480.0,86479.0,0.00093425]
[1764574829305,0.55888724,86480.0,86479.0,0.00093425]
[1764574830820,0.324,86480.0,86479.0,0.05763425]
[1764574830991,0.001,86480.0,86479.0,0.28890426]
[1764574831168,0.001,86480.0,86479.0,0.25559426]
[1764574831353,0.001,86480.0,86479.0,0.23220426]
[1764574831848,0.53053316,86490.0,86488.0,0.23124578]
[1764574832067,0.01156176,86492.0,86489.0,0.23124258]
[1764574832236,0.23123308,86493.0,86490.0,0.23123936]
[1764574832437,0.01156269,86485.0,86480.0,0.23126495]
[1764574832646,0.24281688,86485.0,86481.0,0.24282712]
[1764574832846,0.24281688,86485.0,86480.0,0.23126495]
[1764574832847,0.24282066,86484.0,86480.0,0.23126495]
[1764574833046,0.23125966,86483.0,86480.0,0.01156336]
[1764574833264,0.23125966,86483.0,86480.0,0.24282961]
[1764574833466,0.01156296,86483.0,86479.0,0.00039368]
[1764574833742,0.23126734,86480.0,86479.0,0.00039368]
[1764574833952,0.26017549,86480.0,86479.0,0.00039368]
[1764574834335,0.03252766,86480.0,86479.0,0.00039368]
[1764574834665,0.00361951,86480.0,86479.0,0.00039368]
[1764574834859,0.23488685,86480.0,86479.0,0.00039368]
[1764574835182,0.23488685,86480.0,86479.0,0.23166369]
[1764574835183,0.00361951,86480.0,86479.0,0.23166369]
[1764574836079,0.00361951,86480.0,86479.0,0.00039368]
[1764574836266,0.00361951,86480.0,86479.0,0.23166369]
[1764574837111,0.00361951,86480.0,86479.0,0.00039368]
[1764574837623,0.00361951,86480.0,86479.0,0.23166369]
[1764574837941,0.00361951,86480.0,86479.0,0.23220426]
[1764574839909,0.00361951,86480.0,86479.0,0.00093425]
[1764574840225,0.29529932,86480.0,86479.0,0.00093425]
[1764574840449,0.23488685,86480.0,86479.0,0.00093425]
[1764574841639,0.00361951,86480.0,86479.0,0.23220426]
[1764574843468,0.323,86483.0,86482.0,0.23126199]
[1764574843675,0.32661974,86483.0,86482.0,0.23126199]
[1764574844299,0.00361974,86483.0,86482.0,0.23126199]
[1764574845665,0.5658088,86488.0,86485.0,0.23125397]
[1764574845847,0.00361953,86487.0,86486.0,0.23125103]
[1764574846408,0.323,86489.0,86488.0,0.23124595]
[1764574846606,0.32661942,86489.0,86488.0,0.23124595]
[1764574847091,0.00361942,86489.0,86488.0,0.23124595]
[1764574847309,0.33456176,86492.0,86490.0,0.23123998]
[1764574847476,0.00361932,86491.0,86490.0,0.23123998]
[1764574848047,0.00361932,86491.0,86489.0,0.24280457]
[1764574848416,0.00361932,86491.0,86490.0,0.2312406]
[1764574848574,0.32661932,86491.0,86490.0,0.2312406]
[1764574848966,0.32661932,86491.0,86488.0,0.2428081]
[1764574849189,0.00361932,86490.0,86489.0,0.23124327]
[1764574850063,0.00361932,86491.0,86490.0,0.2312406]
[1764574850702,0.323,86492.0,86491.0,0.23123793]
[1764574850915,0.24278329,86497.0,86494.0,0.23122811]
[1764574851220,0.00361919,86496.0,86494.0,0.23122811]
[1764574851511,0.00361919,86496.0,86493.0,0.23123256]
[1764574851512,0.23122456,86496.0,86493.0,0.23123256]
[1764574851838,0.23122456,86496.0,86494.0,0.23122979]
[1764574852119,0.23122456,86496.0,86493.0,0.24279418]
[1764574852896,0.23122512,86496.0,86494.0,0.23122786]
[1764574853222,0.23122512,86496.0,86493.0,0.24279222]
[1764574854134,0.01156136,86495.0,86490.0,0.24280048]
[1764574854451,0.01156136,86495.0,86477.0,0.24283906]
[1764574854452,0.01156269,86485.0,86477.0,0.24283906]
[1764574854609,0.01156269,86485.0,86480.0,0.01156336]
[1764574854789,0.24281666,86485.0,86484.0,0.00038156]
[1764574857045,0.30533965,86485.0,86484.0,0.00038156]
[1764574859168,0.41793137,86485.0,86484.0,0.00038156]
[1764574859482,0.30533965,86485.0,86484.0,0.00038156]
[1764574860134,0.62833965,86485.0,86484.0,0.00038156]
[1764574860335,0.65693139,86485.0,86484.0,0.00038156]
[1764574860654,0.66156756,86485.0,86484.0,0.00038156]
[1764574861076,0.03114093,86501.0,86484.0,0.05556156]
[1764574861288,0.24275561,86507.0,86499.0,0.09242518]
[1764574861434,0.01156029,86503.0,86493.0,0.01705]
[1764574861638,0.01156055,86501.0,86497.0,0.01156109]
[1764574861846,0.01156069,86500.0,86495.0,0.01156136]
[1764574862064,0.24278134,86498.0,86493.0,0.25984326]
[1764574862277,0.24277617,86500.0,86495.0,0.01156136]
[1764574862501,0.01156055,86501.0,86495.0,0.01156136]
[1764574862502,0.24277175,86501.0,86495.0,0.01156136]
[1764574862655,0.01156055,86501.0,86495.0,0.01156136]
[1764574863000,0.23122732,86495.0,86488.0,0.02861229]
[1764574863139,0.01156136,86495.0,86492.0,0.23123399]
[1764574863346,0.24279407,86494.0,86485.0,0.24281496]
[1764574863543,0.24279407,86494.0,86473.0,0.01705]
[1764574863544,0.24281677,86485.0,86480.0,0.01156336]
[1764574863761,0.01156256,86486.0,86482.0,0.01156309]
[1764574863962,0.23125667,86484.0,86481.0,0.23126467]
[1764574864200,0.23125667,86484.0,86479.0,0.00039368]
[1764574864201,0.01156283,86484.0,86479.0,0.23166314]
[1764574864355,0.24281988,86484.0,86480.0,0.23126717]
[1764574864560,0.24281988,86484.0,86481.0,0.23126446]
[1764574864812,0.01156269,86485.0,86481.0,0.24282653]
[1764574865014,0.01156269,86485.0,86482.0,0.01156309]
[1764574865252,0.24281489,86486.0,86482.0,0.01156309]
[1764574865457,0.01156269,86485.0,86481.0,0.01156323]
[1764574865635,0.01156269,86485.0,86479.0,0.00039368]
[1764574865636,0.24282228,86483.0,86479.0,0.00039368]
[1764574865789,0.01156296,86483.0,86480.0,0.23126719]
[1764574866132,0.24281821,86485.0,86482.0,0.24282499]
[1764574866346,0.01156243,86487.0,86482.0,0.01156309]
[1764574867094,0.24280462,86490.0,86484.0,0.01156283]
[1764574867298,0.01156229,86488.0,86484.0,0.01156283]
[1764574867502,0.23124933,86487.0,86484.0,0.24281894]
[1764574867928,0.01156229,86488.0,86485.0,0.23125313]
[1764574868324,0.24281782,86485.0,86482.0,0.23126162]
[1764574868541,0.01156256,86486.0,86483.0,0.2312593]
[1764574868749,0.24281459,86486.0,86484.0,0.00038156]
[1764574868945,0.24281091,86488.0,86484.0,0.23125661]
[1764574869122,0.24280566,86489.0,86485.0,0.24281666]
[1764574869326,0.23124596,86488.0,86486.0,0.23125068]
[1764574869526,0.23124596,86488.0,86485.0,0.01156269]
[1764574869728,0.323,86490.0,86488.0,0.23124595]
[1764574869931,0.323,86490.0,86489.0,0.23124327]
[1764574870140,0.323,86494.0,86489.0,0.01156216]
[1764574870472,0.323,86494.0,86493.0,0.23123258]
[1764574871254,0.06252299,86500.0,86496.0,0.23122219]
[1764574871455,0.06252299,86498.0,86495.0,0.01156136]
[1764574871641,0.06252299,86498.0,86497.0,0.23122189]
[1764574872022,0.24276155,86505.0,86495.0,0.01156136]
[1764574872023,0.01155949,86509.0,86498.0,0.01156096]
[1764574872294,0.01155949,86509.0,86506.0,0.01155989]
[1764574872295,0.00732,86509.0,86506.0,0.01155989]
[1764574872502,0.00732,86509.0,86508.0,0.23119249]
[1764574873406,0.38552299,86510.0,86509.0,0.23118981]
[1764574874679,0.323,86510.0,86509.0,0.23118981]
[1764574875243,0.2438,86511.0,86510.0,0.23118714]
[1764574875449,0.03114093,86532.0,86524.0,0.23114973]
[1764574875702,0.01155681,86529.0,86525.0,0.01155735]
[1764574875879,0.06252299,86530.0,86525.0,0.01155735]
[1764574876072,0.33455668,86530.0,86526.0,0.24270076]
[1764574876263,0.33455668,86530.0,86529.0,0.23113638]
[1764574876264,0.323,86530.0,86529.0,0.23113638]
[1764574876451,0.01155588,86536.0,86531.0,0.24268742]
[1764574876655,0.25535601,86535.0,86531.0,0.24268245]
[1764574876907,0.25535601,86535.0,86531.0,0.2311259]
[1764574877112,0.323,86534.0,86529.0,0.01155681]
[1764574877270,0.323,86534.0,86533.0,0.23112569]
[1764574877497,0.323,86534.0,86532.0,0.2311273]
[1764574877713,0.323,86534.0,86521.0,0.01155788]
[1764574877714,0.33455615,86534.0,86521.0,0.01155788]
[1764574877919,0.33455668,86530.0,86524.0,0.01155748]
[1764574878101,0.23113943,86528.0,86522.0,0.24271079]
[1764574878478,0.24269638,86528.0,86523.0,0.24270998]
[1764574878684,0.24269931,86527.0,86524.0,0.01155748]
[1764574878956,0.24269893,86527.0,86524.0,0.23114908]
[1764574879162,0.01155708,86527.0,86524.0,0.24270656]
[1764574879459,0.24269638,86528.0,86524.0,0.24270656]
[1764574879460,0.24269781,86528.0,86524.0,0.23114816]
[1764574879620,0.23114276,86527.0,86524.0,0.23114816]
[1764574879808,0.23114448,86526.0,86524.0,0.01155748]
[1764574880022,0.23114448,86526.0,86523.0,0.24270936]
[1764574880444,0.23114448,86526.0,86488.0,0.00025436]
[1764574880445,0.01155815,86519.0,86515.0,0.01155868]
[1764574880663,0.24271844,86520.0,86515.0,0.2427319]
[1764574880865,0.01155802,86520.0,86516.0,0.23117104]
[1764574881125,0.24271538,86522.0,86517.0,0.23116796]
[1764574881316,0.24271261,86523.0,86519.0,0.24271989]
[1764574881482,0.01155762,86523.0,86519.0,0.24271989]
[1764574881683,0.24271022,86523.0,86520.0,0.23115995]
[1764574881886,0.24271022,86523.0,86519.0,0.01155815]
[1764574882069,0.01155775,86522.0,86518.0,0.01155828]
[1764574882283,0.2924115,86522.0,86518.0,0.24272398]
[1764574882903,0.01155788,86521.0,86518.0,0.24272398]
[1764574883070,0.04969705,86522.0,86519.0,0.24272124]
[1764574883300,0.01155748,86524.0,86519.0,0.24272124]
[1764574883741,0.24271056,86523.0,86519.0,0.24272124]
[1764574885612,0.24270703,86525.0,86521.0,0.2311572]
[1764574885814,0.01155695,86528.0,86524.0,0.23114954]
[1764574886052,0.24269942,86527.0,86523.0,0.24270873]
[1764574886269,0.23115005,86524.0,86522.0,0.01155775]
[1764574886646,0.01155735,86525.0,86522.0,0.24271268]
[1764574887713,0.01155641,86532.0,86524.0,0.01155748]
[1764574887915,0.323,86529.0,86527.0,0.23114168]
[1764574888121,0.323,86529.0,86528.0,0.23113905]
[1764574888528,0.5668,86535.0,86534.0,0.23112302]
[1764574888759,0.23,86543.0,86540.0,0.01155535]
[1764574888965,0.24155494,86543.0,86538.0,0.01155561]
[1764574889222,0.24155494,86543.0,86526.0,0.01155721]
[1764574889223,0.01155628,86533.0,86526.0,0.01155721]
[1764574889432,0.23112059,86535.0,86528.0,0.00732]
[1764574889433,0.01155615,86534.0,86528.0,0.00732]
[1764574889627,0.24268497,86532.0,86528.0,0.00738823]
[1764574889949,0.23113603,86530.0,86528.0,0.00738823]
[1764574890181,0.23113638,86529.0,86528.0,0.00738823]
[1764574890388,0.01155615,86534.0,86528.0,0.01894518]
[1764574890554,0.24268984,86531.0,86528.0,0.25008391]
[1764574890754,0.01155481,86544.0,86531.0,0.01155655]
[1764574891054,0.68945116,86541.0,86537.0,0.01155575]
[1764574891221,0.33455521,86541.0,86538.0,0.24266586]
[1764574891472,0.323,86541.0,86538.0,0.01155561]
[1764574891638,0.323,86541.0,86540.0,0.231107]
[1764574891844,0.25535308,86557.0,86542.0,0.23110166]
[1764574892067,0.67789595,86550.0,86542.0,0.25252166]
[1764574892194,0.67789595,86550.0,86542.0,0.23110166]
[1764574892600,0.9089765,86550.0,86542.0,0.23110166]
[1764574892818,0.01155388,86551.0,86542.0,0.23110166]
[1764574893418,0.01155414,86549.0,86541.0,0.23110379]
[1764574893626,0.01155401,86550.0,86542.0,0.23110166]
[1764574893818,0.01155428,86548.0,86542.0,0.23110166]
[1764574894024,0.24264023,86548.0,86542.0,0.23110166]
[1764574894220,0.231,86543.0,86542.0,0.23110166]
[1764574894422,0.001,86543.0,86542.0,0.23110166]
[1764574894621,0.56563159,86551.0,86547.0,0.23108803]
[1764574894958,0.323,86551.0,86548.0,0.24263861]
[1764574895266,0.323,86551.0,86549.0,0.23108254]
[1764574895431,0.323,86551.0,86550.0,0.2310803]
[1764574895637,0.323,86552.0,86549.0,0.24263668]
[1764574895948,0.01155388,86551.0,86541.0,0.01155521]
[1764574896119,1.3557919,86551.0,86546.0,0.01155454]
[1764574896326,0.323,86552.0,86549.0,0.24263682]
[1764574896539,0.24259806,86563.0,86559.0,0.24260908]
[1764574896740,0.323,86560.0,86559.0,0.24260908]
[1764574896951,0.01155174,86567.0,86554.0,0.01155348]
[1764574896952,0.00335373,86580.0,86577.0,0.01155041]
[1764574897148,0.00335373,86580.0,86578.0,0.23100541]
[1764574897374,0.00335373,86580.0,86576.0,0.24256086]
[1764574897574,0.323,86579.0,86576.0,0.24256086]
[1764574897788,0.24629709,86580.0,86575.0,0.24256231]
[1764574897994,0.24255358,86579.0,86575.0,0.24256231]
[1764574898198,0.23100604,86578.0,86575.0,0.24256231]
[1764574898415,0.55400583,86578.0,86575.0,0.01155067]
[1764574899286,0.323,86578.0,86575.0,0.01155067]
[1764574899490,0.00374679,86580.0,86577.0,0.01155041]
[1764574899689,0.00374679,86580.0,86579.0,0.23100289]
[1764574899978,0.00374679,86580.0,86578.0,0.23100514]
[1764574900200,0.00374679,86580.0,86579.0,0.23100289]
[1764574903473,0.00374679,86580.0,86577.0,0.24255812]